fUST/lending_fUST_20260118
["ID","MTS","AMOUNT","RATE_DAILY","PERIOD"]
[402442337,1768678252571,-777.27,0.00016712,3]
[402442339,1768678252581,-500.0,0.00016712,3]
[402442342,1768678252593,-500.0,0.00016712,3]
[402442344,1768678252604,-1216.98,0.00016712,3]
[402442346,1768678252616,-1124.47,0.00016712,3]
[402442348,1768678252627,-500.0,0.00016712,3]
[402442351,1768678252639,-500.0,0.00016712,3]
[402442353,1768678252652,-530.80700199,0.00016712,3]
[402442355,1768678252663,-500.0,0.00016712,3]
[402442357,1768678252675,-500.0,0.00016712,3]
[402442359,1768678252688,-1477.44,0.00016712,3]
[402442362,1768678252699,-500.0,0.00016712,3]
[402442364,1768678252709,-500.0,0.00016712,3]
[402442366,1768678252721,-500.0,0.00016712,3]
[402442368,1768678252732,-1254.87,0.00016712,3]
[402442370,1768678252743,-1763.46,0.00016712,3]
[402442373,1768678252759,-1084.1,0.00016712,3]
[402442375,1768678252770,-500.0,0.00016712,3]
[402442378,1768678252781,-500.0,0.00016712,3]
[402442380,1768678252792,-500.0,0.00016712,3]
[402442382,1768678252804,-500.0,0.00016712,3]
[402442384,1768678252815,-1224.33,0.00016712,3]
[402442386,1768678252826,-791.74,0.00016712,3]
[402442389,1768678252837,-11980.17,0.00016712,3]
[402442391,1768678252848,-2126.89,0.00016712,3]
[402442393,1768678252859,-500.0,0.00016712,3]
[402442395,1768678252871,-500.0,0.00016712,3]
[402442397,1768678252883,-1233.77,0.00016712,3]
[402442399,1768678252893,-500.0,0.00016712,2]
[402442402,1768678252905,-500.0,0.00016712,3]
[402442404,1768678252916,-1373.4,0.00016712,3]
[402442406,1768678252927,-500.0,0.00016712,3]
[402442408,1768678252938,-851.12,0.00016712,3]
[402442410,1768678252949,-500.0,0.00016712,2]
[402442413,1768678252960,-500.0,0.00016712,3]
[402442415,1768678252971,-500.0,0.00016712,3]
[402442417,1768678252983,-769.09,0.00016712,3]
[402442419,1768678252995,-845.78,0.00016712,3]
[402442422,1768678253006,-2535.42,0.00016712,3]
[402442424,1768678253017,-500.0,0.00016712,3]
[402442426,1768678253029,-590.2,0.00016712,3]
[402442428,1768678253040,-500.0,0.00016712,3]
[402442430,1768678253052,-500.0,0.00016712,3]
[402442433,1768678253064,-500.0,0.00016712,3]
[402442435,1768678253075,-1156.0,0.00016712,3]
[402442437,1768678253087,-540.28,0.00016712,3]
[402442439,1768678253097,-500.0,0.00016712,3]
[402442441,1768678253109,-151.0,0.00016712,2]
[402442444,1768678253120,-500.0,0.00016712,3]
[402442446,1768678253132,-500.0,0.00016712,3]
[402442448,1768678253143,-500.0,0.00016712,2]
[402442450,1768678253153,-151.0,0.00016712,2]
[402442452,1768678253165,-500.0,0.00016712,3]
[402442455,1768678253176,-593.0,0.0001673,2]
[402442457,1768678253187,-593.0,0.00016742,2]
[402442459,1768678253198,-248.45362017,0.00016745,2]
[402442461,1768678253210,-593.0,0.00016914,2]
[402442463,1768678253221,-500.0,0.00016986,3]
[402442465,1768678253232,-541.87987257,0.00016986,3]
[402442468,1768678253243,-500.0,0.00016986,3]
[402442470,1768678253253,-648.17,0.00016986,3]
[402442472,1768678253264,-500.0,0.00016986,3]
[402442474,1768678253276,-704.85,0.00016986,3]
[402442476,1768678253288,-500.0,0.00016986,3]
[402442479,1768678253299,-790.27,0.00016986,3]
[402442481,1768678253310,-500.0,0.00016986,3]
[402442483,1768678253321,-500.0,0.00016986,3]
[402442485,1768678253332,-185.72313516,0.00016986,3]
[402442488,1768678253343,-862.74052012,0.00016986,3]
[402442490,1768678253355,-500.0,0.00016986,3]
[402442492,1768678253367,-500.0,0.00016986,3]
[402442494,1768678253379,-575.6,0.00016986,3]
[402442497,1768678253390,-500.0,0.00016986,3]
[402442499,1768678253402,-611.76,0.00016986,3]
[402442501,1768678253413,-500.0,0.00016986,3]
[402442503,1768678253424,-500.0,0.00016986,3]
[402442505,1768678253434,-1351.59,0.00016986,3]
[402442507,1768678253445,-500.0,0.00016986,3]
[402442509,1768678253456,-603.67,0.00016986,3]
[402442512,1768678253468,-500.0,0.00016986,3]
[402442514,1768678253479,-500.0,0.00016986,3]
[402442516,1768678253490,-500.0,0.00016986,3]
[402442518,1768678253501,-201.58031394,0.00016986,3]
[402442520,1768678253512,-500.0,0.00016986,3]
[402442522,1768678253523,-500.0,0.00016986,3]
[402442525,1768678253533,-628.18,0.00016986,3]
[402442527,1768678253545,-500.0,0.00016986,3]
[402442529,1768678253557,-826.67,0.00016986,3]
[402442531,1768678253568,-1074.38,0.00016986,3]
[402442533,1768678253580,-695.94,0.00016986,3]
[402442536,1768678253593,-500.0,0.00016986,3]
[402442538,1768678253605,-609.26,0.00016986,3]
[402442540,1768678253616,-530.47,0.00016986,3]
[402442542,1768678253628,-1000.0,0.00016986,2]
[402442544,1768678253641,-500.0,0.00016986,3]
[402442546,1768678253652,-500.0,0.00016986,3]
[402442549,1768678253664,-500.0,0.00016986,3]
[402442551,1768678253675,-500.0,0.00016986,3]
[402442553,1768678253689,-500.0,0.00016986,3]
[402442555,1768678253700,-500.0,0.00016986,3]
[402442557,1768678253712,-500.0,0.00016986,3]
[402442560,1768678253723,-578.13,0.00016986,3]
[402442562,1768678253736,-500.0,0.00016986,3]
[402442564,1768678253747,-500.0,0.00016986,3]
[402442567,1768678253759,-500.0,0.00016986,3]
[402442569,1768678253771,-500.0,0.00016986,3]
[402442571,1768678253782,-500.0,0.00016986,3]
[402442573,1768678253794,-500.0,0.00016986,3]
[402442575,1768678253806,-500.0,0.00016986,3]
[402442578,1768678253819,-500.0,0.00016986,3]
[402442580,1768678253831,-620.63413728,0.00016986,3]
[402442582,1768678253842,-500.0,0.00016986,3]
[402442584,1768678253853,-533.97,0.00016986,3]
[402442586,1768678253865,-500.0,0.00016986,3]
[402442588,1768678253875,-546.97,0.00016986,3]
[402442591,1768678253886,-915.52,0.00016986,3]
[402442593,1768678253898,-500.0,0.00016986,3]
[402442595,1768678253909,-500.0,0.00016986,3]
[402442597,1768678253920,-500.0,0.00016986,3]
[402442599,1768678253931,-500.0,0.00016986,3]
[402442601,1768678253943,-231.71584647,0.00016986,3]
[402442604,1768678253955,-543.74,0.00016986,3]
[402442606,1768678253966,-500.0,0.00016986,3]
[402442608,1768678253978,-1080.02,0.00016986,3]
[402442610,1768678253989,-500.0,0.00016986,3]
[402442612,1768678254001,-500.0,0.00016986,3]
[402442614,1768678254012,-500.0,0.00016986,3]
[402442617,1768678254027,-1116.59,0.00016986,3]
[402442619,1768678254038,-530.22,0.00016986,3]
[402442621,1768678254050,-500.0,0.00016986,3]
[402442624,1768678254063,-500.0,0.00016986,3]
[402442626,1768678254075,-666.55,0.00016986,3]
[402442628,1768678254087,-500.0,0.00016986,3]
[402442630,1768678254101,-640.69,0.00016986,3]
[402442633,1768678254112,-500.0,0.00016986,3]
[402442635,1768678254124,-500.0,0.00016986,3]
[402442637,1768678254135,-535.81,0.00016986,3]
[402442639,1768678254145,-500.0,0.00016986,3]
[402442641,1768678254156,-803.97,0.00016986,3]
[402442643,1768678254167,-500.0,0.00016986,3]
[402442645,1768678254178,-894.28,0.00016986,3]
[402442648,1768678254190,-500.0,0.00016986,3]
[402442650,1768678254201,-500.0,0.00016986,3]
[402442652,1768678254212,-500.0,0.00016986,3]
[402442654,1768678254223,-500.0,0.00016986,3]
[402442656,1768678254234,-500.0,0.00016986,3]
[402442658,1768678254245,-716.84,0.00016986,3]
[402442661,1768678254256,-510.34,0.00016986,3]
[402442663,1768678254267,-886.01,0.00016986,3]
[402442665,1768678254278,-229.04893973,0.00016986,3]
[402442667,1768678254288,-1108.48,0.00016986,3]
[402442669,1768678254299,-500.0,0.00016986,3]
[402442671,1768678254310,-906.41,0.00016986,3]
[402442674,1768678254321,-999.87,0.00016986,3]
[402442676,1768678254332,-500.0,0.00016986,3]
[402442678,1768678254343,-1093.11,0.00016986,3]
[402442680,1768678254354,-500.0,0.00016986,3]
[402442682,1768678254364,-500.0,0.00016986,3]
[402442684,1768678254375,-500.0,0.00016986,3]
[402442687,1768678254386,-1503.34,0.00016986,3]
[402442689,1768678254397,-583.06,0.00016986,3]
[402442691,1768678254407,-772.35,0.00016986,3]
[402442693,1768678254416,-500.0,0.00016986,3]
[402442695,1768678254426,-500.0,0.00016986,3]
[402442697,1768678254436,-500.0,0.00016986,3]
[402442699,1768678254445,-678.11,0.00016986,3]
[402442701,1768678254455,-506.73873249,0.00016986,3]
[402442703,1768678254464,-1038.1,0.00016986,3]
[402442705,1768678254473,-1066.58,0.00016986,3]
[402442707,1768678254483,-500.0,0.00016986,3]
[402442709,1768678254492,-841.62,0.00016986,3]
[402442711,1768678254501,-500.0,0.00016986,3]
[402442757,1768678254921,-375.1586931,0.00016986,3]
[402442761,1768678254946,-500.0,0.00016986,3]
[402442763,1768678254958,-500.0,0.00016986,3]
[402442765,1768678254967,-903.33,0.00016986,3]
[402442767,1768678254977,-554.46,0.00016986,3]
[402442769,1768678254986,-510.61,0.00016986,3]
[402442771,1768678254995,-500.0,0.00016986,3]
[402442773,1768678255005,-500.0,0.00016986,3]
[402442775,1768678255014,-155.6746373,0.00016986,3]
[402442777,1768678255023,-774.07,0.00016986,3]
[402442779,1768678255032,-629.03,0.00016986,3]
[402442781,1768678255041,-500.0,0.00016986,3]
[402442783,1768678255051,-500.0,0.00016986,3]
[402442785,1768678255060,-1121.23,0.00016986,3]
[402442787,1768678255069,-1899.56,0.00016986,3]
[402442789,1768678255078,-782.37,0.00016986,3]
[402442791,1768678255087,-500.0,0.00016986,3]
[402442793,1768678255095,-500.0,0.00016986,3]
[402442795,1768678255104,-545.974807,0.00016986,3]
[402442798,1768678255115,-500.0,0.00016986,3]
[402442800,1768678255124,-500.0,0.00016986,3]
[402442801,1768678255133,-500.0,0.00016986,3]
[402442803,1768678255142,-500.0,0.00016986,3]
[402442805,1768678255151,-600.45,0.00016986,3]
[402442807,1768678255160,-500.0,0.00016986,3]
[402442809,1768678255169,-500.0,0.00016986,3]
[402442811,1768678255178,-1227.46,0.00016986,3]
[402442813,1768678255187,-500.0,0.00016986,3]
[402442815,1768678255196,-500.0,0.00016986,3]
[402442817,1768678255205,-500.0,0.00016986,3]
[402442819,1768678255215,-354.56534222,0.00016986,3]
[402442821,1768678255224,-500.0,0.00016986,3]
[402442823,1768678255233,-500.0,0.00016986,3]
[402442825,1768678255243,-970.35,0.00016986,3]
[402442827,1768678255252,-500.0,0.00016986,3]
[402442829,1768678255262,-500.0,0.00016986,3]
[402442831,1768678255271,-500.0,0.00016986,3]
[402442833,1768678255280,-1618.22,0.00016986,3]
[402442835,1768678255289,-267.54932602,0.00016986,3]
[402442838,1768678255298,-811.76,0.00016986,3]
[402442840,1768678255308,-500.0,0.00016986,3]
[402442842,1768678255317,-500.0,0.00016986,3]
[402442844,1768678255326,-1318.72,0.00016986,3]
[402442846,1768678255335,-1044.43,0.00016986,3]
[402442848,1768678255344,-500.0,0.00016986,3]
[402442850,1768678255353,-516.06,0.00016986,3]
[402442852,1768678255362,-500.0,0.00016986,3]
[402442854,1768678255371,-500.0,0.00016986,3]
[402442856,1768678255380,-152.4444076,0.00016986,3]
[402442858,1768678255390,-1078.65,0.00016986,3]
[402442860,1768678255398,-517.76,0.00016986,3]
[402442862,1768678255407,-741.42,0.00016986,3]
[402442864,1768678255418,-500.0,0.00016986,3]
[402442866,1768678255427,-500.0,0.00016986,3]
[402442868,1768678255437,-195.78734149,0.00016986,3]
[402442870,1768678255446,-556.35,0.00016986,3]
[402442872,1768678255456,-500.0,0.00016986,3]
[402442874,1768678255465,-500.0,0.00016986,3]
[402442876,1768678255475,-500.0,0.00016986,3]
[402442878,1768678255483,-500.0,0.00016986,3]
[402442880,1768678255492,-500.0,0.00016986,3]
[402442881,1768678255501,-500.0,0.00016986,3]
[402442884,1768678255511,-500.0,0.00016986,3]
[402442886,1768678255522,-1311.65,0.00016986,3]
[402442888,1768678255531,-500.0,0.00016986,3]
[402442890,1768678255540,-968.07,0.00016986,3]
[402442892,1768678255550,-576.57,0.00016986,3]
[402442894,1768678255559,-500.0,0.00016986,3]
[402442896,1768678255568,-500.0,0.00016986,3]
[402442898,1768678255577,-500.0,0.00016986,3]
[402442899,1768678255586,-500.0,0.00016986,3]
[402442901,1768678255594,-954.0,0.00016986,3]
[402442903,1768678255603,-1221.51,0.00016986,3]
[402442905,1768678255612,-1229.38,0.00016986,3]
[402442907,1768678255622,-1126.24,0.00016986,3]
[402442909,1768678255631,-500.0,0.00016986,3]
[402442911,1768678255642,-500.0,0.00016986,3]
[402442913,1768678255650,-500.0,0.00016986,3]
[402442915,1768678255658,-702.75,0.00016986,3]
[402442917,1768678255667,-1167.5,0.00016986,3]
[402442919,1768678255673,-500.0,0.00016986,3]
[402442921,1768678255683,-1065.93,0.00016986,3]
[402442923,1768678255692,-632.04,0.00016986,3]
[402442925,1768678255701,-501.65,0.00016986,3]
[402442927,1768678255711,-500.0,0.00016986,3]
[402442930,1768678255722,-500.0,0.00016986,3]
[402442931,1768678255730,-592.87,0.00016986,3]
[402442933,1768678255739,-924.85,0.00016986,3]
[402442936,1768678255751,-500.0,0.00016986,3]
[402442938,1768678255759,-500.0,0.00016986,3]
[402442940,1768678255769,-500.0,0.00016986,3]
[402442942,1768678255778,-500.0,0.00016986,3]
[402442944,1768678255787,-662.22,0.00016986,3]
[402442945,1768678255796,-500.0,0.00016986,3]
[402442946,1768678255805,-671.8,0.00016986,3]
[402442947,1768678255814,-500.0,0.00016986,3]
[402442948,1768678255824,-500.0,0.00016986,3]
[402442949,1768678255833,-407.51341216,0.00016986,3]
[402442950,1768678255842,-500.0,0.00016986,3]
[402442951,1768678255851,-661.77,0.00016986,3]
[402442952,1768678255859,-500.0,0.00016986,3]
[402442953,1768678255868,-500.0,0.00016986,3]
[402442954,1768678255877,-500.0,0.00016986,3]
[402442955,1768678255886,-500.0,0.00016986,3]
[402442956,1768678255896,-617.55085621,0.00016986,3]
[402442957,1768678255903,-500.0,0.00016986,3]
[402442958,1768678255911,-1484.16,0.00016986,3]
[402442959,1768678255920,-923.8,0.00016986,3]
[402442960,1768678255928,-539.97212861,0.00016986,3]
[402442961,1768678255935,-500.0,0.00016986,3]
[402442962,1768678255944,-668.48,0.00016986,3]
[402442963,1768678255954,-500.0,0.00016986,3]
[402442964,1768678255963,-522.84,0.00016986,3]
[402442965,1768678255972,-1120.09,0.00016986,3]
[402442966,1768678255981,-510.46768292,0.00016986,3]
[402442967,1768678255991,-953.45,0.00016986,3]
[402442968,1768678256000,-500.0,0.00016986,3]
[402442969,1768678256010,-305.2620146,0.00016986,3]
[402442970,1768678256021,-591.39,0.00016986,3]
[402442971,1768678256030,-500.0,0.00016986,3]
[402442972,1768678256039,-500.0,0.00016986,3]
[402442973,1768678256048,-500.0,0.00016986,3]
[402442974,1768678256057,-500.0,0.00016986,3]
[402442975,1768678256067,-500.0,0.00016986,3]
[402442976,1768678256076,-500.0,0.00016986,3]
[402442977,1768678256085,-500.0,0.00016986,3]
[402442978,1768678256094,-500.0,0.00016986,3]
[402442979,1768678256103,-500.0,0.00016986,3]
[402442980,1768678256112,-573.26,0.00016986,3]
[402442981,1768678256122,-590.26232333,0.00016986,3]
[402442982,1768678256131,-615.9,0.00016986,3]
[402442983,1768678256141,-500.0,0.00016986,3]
[402442984,1768678256150,-500.0,0.00016986,3]
[402442985,1768678256159,-726.48,0.00016986,3]
[402442986,1768678256168,-500.0,0.00016986,3]
[402442987,1768678256178,-500.0,0.00016986,3]
[402442988,1768678256187,-500.0,0.00016986,3]
[402442989,1768678256196,-211.77953506,0.00016986,3]
[402442990,1768678256206,-500.0,0.00016986,3]
[402442991,1768678256215,-720.99,0.00016986,3]
[402442992,1768678256225,-500.0,0.00016986,3]
[402442993,1768678256234,-500.0,0.00016986,3]
[402442994,1768678256243,-572.8,0.00016986,3]
[402442995,1768678256253,-524.17,0.00016986,3]
[402442996,1768678256262,-500.0,0.00016986,3]
[402442997,1768678256272,-500.0,0.00016986,3]
[402442998,1768678256281,-500.0,0.00016986,3]
[402442999,1768678256290,-500.0,0.00016986,3]
[402443000,1768678256299,-780.39,0.00016986,3]
[402443001,1768678256308,-577.2,0.00016986,3]
[402443002,1768678256317,-500.0,0.00016986,3]
[402443003,1768678256327,-500.0,0.00016986,3]
[402443004,1768678256336,-500.0,0.00016986,3]
[402443005,1768678256345,-676.2,0.00016986,3]
[402443006,1768678256354,-682.04,0.00016986,3]
[402443007,1768678256364,-500.0,0.00016986,3]
[402443008,1768678256373,-500.0,0.00016986,3]
[402443009,1768678256383,-500.0,0.00016986,3]
[402443010,1768678256392,-500.0,0.00016986,3]
[402443011,1768678256402,-827.64,0.00016986,3]
[402443012,1768678256412,-500.0,0.00016986,3]
[402443013,1768678256422,-500.0,0.00016986,3]
[402443014,1768678256432,-500.0,0.00016986,3]
[402443015,1768678256441,-1047.26,0.00016986,3]
[402443016,1768678256451,-829.45,0.00016986,3]
[402443017,1768678256461,-969.81,0.00016986,3]
[402443018,1768678256470,-607.74969419,0.00016986,3]
[402443019,1768678256480,-786.17,0.00016986,3]
[402443020,1768678256490,-500.0,0.00016986,3]
[402443021,1768678256500,-500.0,0.00016986,3]
[402443022,1768678256510,-1200.0,0.00016986,2]
[402443023,1768678256518,-500.0,0.00016986,3]
[402443024,1768678256526,-500.0,0.00016986,3]
[402443025,1768678256534,-760.27,0.00016986,3]
[402443026,1768678256543,-500.0,0.00016986,3]
[402443027,1768678256552,-500.0,0.00016986,3]
[402443028,1768678256561,-500.0,0.00016986,3]
[402443029,1768678256570,-500.0,0.00016986,3]
[402443030,1768678256579,-577.61,0.00016986,3]
[402443031,1768678256588,-500.0,0.00016986,3]
[402443032,1768678256597,-1452.17,0.00016986,3]
[402443033,1768678256606,-635.48793387,0.00016986,3]
[402443034,1768678256616,-644.64,0.00016986,3]
[402443035,1768678256627,-746.28,0.00016986,3]
[402443036,1768678256636,-573.93,0.00016986,3]
[402443037,1768678256650,-500.0,0.00016986,3]
[402443038,1768678256659,-500.0,0.00016986,3]
[402443039,1768678256669,-500.0,0.00016986,3]
[402443040,1768678256679,-500.0,0.00016986,3]
[402443042,1768678256689,-500.0,0.00016986,3]
[402443043,1768678256699,-752.31,0.00016986,3]
[402443044,1768678256710,-500.34885324,0.00016986,3]
[402443045,1768678256721,-213.48291508,0.00016986,3]
[402443047,1768678256730,-790.74,0.00016986,3]
[402443049,1768678256739,-500.0,0.00016986,3]
[402443050,1768678256749,-500.0,0.00016986,3]
[402443052,1768678256758,-500.0,0.00016986,3]
[402443054,1768678256776,-500.0,0.00016986,3]
[402443055,1768678256789,-500.0,0.00016986,3]
[402443056,1768678256797,-500.0,0.00016986,3]
[402443057,1768678256808,-1185.91,0.00016986,3]
[402443058,1768678256817,-500.0,0.00016986,3]
[402443059,1768678256827,-1212.12,0.00016986,3]
[402443060,1768678256837,-151.0,0.00016986,2]
[402443061,1768678256847,-500.0,0.00016986,3]
[402443062,1768678256857,-500.0,0.00016986,3]
[402443063,1768678256866,-151.24,0.00016986,3]
[402443064,1768678256876,-500.0,0.00016986,3]
[402443065,1768678256885,-500.0,0.00016986,3]
[402443066,1768678256895,-206.13170951,0.00016986,3]
[402443067,1768678256905,-1427.0,0.00016986,3]
[402443068,1768678256915,-2146.74,0.00016986,3]
[402443069,1768678256924,-500.0,0.00016986,3]
[402443070,1768678256935,-500.0,0.00016986,3]
[402443071,1768678256945,-500.0,0.00016986,3]
[402443072,1768678256954,-500.0,0.00016986,3]
[402443073,1768678256964,-500.0,0.00016986,3]
[402443074,1768678256975,-500.0,0.00016986,3]
[402443075,1768678256985,-500.0,0.00016986,3]
[402443076,1768678256994,-500.0,0.00016986,3]
[402443077,1768678257004,-500.0,0.00016986,3]
[402443078,1768678257014,-1396.82,0.00016986,3]
[402443079,1768678257024,-541.99,0.00016986,3]
[402443080,1768678257034,-876.63,0.00016986,3]
[402443081,1768678257044,-500.0,0.00016986,3]
[402443082,1768678257054,-1231.98,0.00016986,3]
[402443083,1768678257066,-500.0,0.00016986,3]
[402443084,1768678257076,-828.64,0.00016986,3]
[402443085,1768678257085,-815.77,0.00016986,3]
[402443086,1768678257095,-500.0,0.00016986,3]
[402443087,1768678257105,-500.0,0.00016986,3]
[402443088,1768678257114,-1093.5,0.00016986,3]
[402443089,1768678257124,-500.0,0.00016986,3]
[402443090,1768678257133,-500.0,0.00016986,3]
[402443091,1768678257143,-1596.28,0.00016986,3]
[402443092,1768678257153,-500.0,0.00016986,3]
[402443093,1768678257163,-717.13,0.00016986,3]
[402443094,1768678257173,-500.0,0.00016986,3]
[402443095,1768678257183,-596.93,0.00016986,3]
[402443096,1768678257193,-678.82,0.00016986,3]
[402443097,1768678257203,-957.38,0.00016986,3]
[402443098,1768678257212,-1464.35,0.00016986,3]
[402443099,1768678257221,-937.36,0.00016986,3]
[402443100,1768678257231,-500.0,0.00016986,3]
[402443101,1768678257241,-500.0,0.00016986,3]
[402443102,1768678257250,-500.0,0.00016986,3]
[402443103,1768678257260,-500.0,0.00016986,3]
[402443104,1768678257270,-1712.83,0.00016986,3]
[402443105,1768678257279,-755.24,0.00016986,3]
[402443106,1768678257289,-500.0,0.00016986,3]
[402443107,1768678257299,-500.0,0.00016986,3]
[402443108,1768678257310,-1097.47,0.00016986,3]
[402443109,1768678257319,-500.0,0.00016986,3]
[402443110,1768678257330,-583.47,0.00016986,3]
[402443111,1768678257342,-523.29,0.00016986,3]
[402443112,1768678257351,-500.0,0.00016986,3]
[402443113,1768678257360,-2232.18,0.00016986,3]
[402443115,1768678257370,-500.0,0.00016986,3]
[402443117,1768678257379,-500.0,0.00016986,3]
[402443119,1768678257389,-500.0,0.00016986,3]
[402443120,1768678257399,-500.0,0.00016986,3]
[402443121,1768678257408,-544.4,0.00016986,3]
[402443122,1768678257421,-591.18,0.00016986,3]
[402443123,1768678257431,-719.78,0.00016986,3]
[402443124,1768678257441,-470.6383794,0.00016986,3]
[402443125,1768678257451,-500.0,0.00016986,3]
[402443126,1768678257461,-500.0,0.00016986,3]
[402443127,1768678257471,-595.14,0.00016986,3]
[402443129,1768678257480,-500.0,0.00016986,3]
[402443131,1768678257490,-1088.22,0.00016986,3]
[402443132,1768678257499,-687.02,0.00016986,3]
[402443133,1768678257509,-847.39,0.00016986,3]
[402443135,1768678257519,-500.0,0.00016986,3]
[402443136,1768678257529,-500.0,0.00016986,3]
[402443137,1768678257538,-500.0,0.00016986,3]
[402443138,1768678257548,-591.83,0.00016986,3]
[402443140,1768678257558,-500.0,0.00016986,3]
[402443141,1768678257567,-635.29,0.00016986,3]
[402443142,1768678257580,-500.0,0.00016986,3]
[402443143,1768678257589,-1030.18,0.00016986,3]
[402443144,1768678257600,-898.31,0.00016986,3]
[402443145,1768678257609,-1099.95,0.00016986,3]
[402443146,1768678257619,-1314.38,0.00016986,3]
[402443147,1768678257628,-1245.3,0.00016986,3]
[402443148,1768678257637,-500.0,0.00016986,3]
[402443149,1768678257652,-1620.2,0.00016986,3]
[402443150,1768678257661,-500.0,0.00016986,3]
[402443151,1768678257671,-500.0,0.00016986,3]
[402443152,1768678257680,-500.0,0.00016986,3]
[402443153,1768678257691,-7566.04,0.00016986,3]
[402443154,1768678257701,-500.0,0.00016986,3]
[402443155,1768678257711,-500.0,0.00016986,3]
[402443156,1768678257721,-1307.26,0.00016986,3]
[402443157,1768678257730,-500.0,0.00016986,3]
[402443158,1768678257740,-500.0,0.00016986,3]
[402443159,1768678257750,-697.17,0.00016986,3]
[402443160,1768678257940,-500.0,0.00016986,3]
[402443161,1768678257954,-461.0,0.00016986,3]
[402443162,1768678257964,-500.0,0.00016986,3]
[402443163,1768678257973,-500.0,0.00016986,3]
[402443164,1768678257983,-1059.88,0.00016986,3]
[402443165,1768678257992,-500.0,0.00016986,3]
[402443166,1768678258003,-546.14,0.00016986,3]
[402443167,1768678258013,-500.0,0.00016986,3]
[402443168,1768678258022,-588.78,0.00016986,3]
[402443169,1768678258032,-1550.57,0.00016986,3]
[402443170,1768678258043,-500.0,0.00016986,3]
[402443171,1768678258054,-500.0,0.00016986,3]
[402443172,1768678258063,-749.11,0.00016986,3]
[402443173,1768678258072,-500.0,0.00016986,3]
[402443174,1768678258082,-500.0,0.00016986,3]
[402443175,1768678258091,-500.0,0.00016986,3]
[402443176,1768678258100,-500.0,0.00016986,3]
[402443177,1768678258110,-717.8,0.00016986,3]
[402443178,1768678258119,-640.3,0.00016986,3]
[402443179,1768678258128,-500.0,0.00016986,3]
[402443180,1768678258138,-500.0,0.00016986,3]
[402443181,1768678258148,-500.0,0.00016986,3]
[402443182,1768678258157,-712.18,0.00016986,3]
[402443183,1768678258168,-500.0,0.00016986,3]
[402443184,1768678258178,-741.99,0.00016986,3]
[402443185,1768678258187,-500.0,0.00016986,3]
[402443186,1768678258198,-500.0,0.00016986,3]
[402443187,1768678258208,-710.07,0.00016986,3]
[402443188,1768678258217,-500.0,0.00016986,3]
[402443189,1768678258226,-719.01,0.00016986,3]
[402443190,1768678258235,-852.0,0.00016986,3]
[402443191,1768678258244,-500.0,0.00016986,3]